[Event "Early-Titled-Tuesday-Blitz-April-16-2024"]
[Site "Chess.com"]
[Date "2024.04.16"]
[Round "2"]
[White "temiksmozg"]
[Black "viditchess"]
[Result "0-1"]
[WhiteElo "2650"]
[BlackElo "3133"]
[TimeControl "180+1"]
[EndTime "8:18:32 PDT"]
[Termination "viditchess won on time"]

1. d4 {[%clk 0:03:00.9]} 1... Nf6 {[%clk 0:02:59]} 2. c4 {[%clk 0:03:00.8]} 2...
e6 {[%clk 0:02:59]} 3. Nf3 {[%clk 0:03:00.9]} 3... b6 {[%clk 0:02:59.2]} 4. a3
{[%clk 0:03:01]} 4... Bb7 {[%clk 0:02:57.3]} 5. Nc3 {[%clk 0:03:00.3]} 5... d5
{[%clk 0:02:45.1]} 6. Bg5 {[%clk 0:02:59.4]} 6... Be7 {[%clk 0:02:44.7]} 7. e3
{[%clk 0:02:57.4]} 7... Nbd7 {[%clk 0:02:44.1]} 8. Rc1 {[%clk 0:02:47.5]} 8...
O-O {[%clk 0:02:43.7]} 9. cxd5 {[%clk 0:02:44.6]} 9... exd5 {[%clk 0:02:43.5]}
10. Bd3 {[%clk 0:02:44.3]} 10... h6 {[%clk 0:02:41.9]} 11. Bh4 {[%clk
0:02:43.3]} 11... c5 {[%clk 0:02:41.3]} 12. O-O {[%clk 0:02:42.9]} 12... Re8
{[%clk 0:02:41.7]} 13. Qc2 {[%clk 0:02:32.6]} 13... Rc8 {[%clk 0:02:40.8]} 14.
Qb1 {[%clk 0:02:32.2]} 14... Bd6 {[%clk 0:02:33.2]} 15. Rfd1 {[%clk 0:02:29.8]}
15... a6 {[%clk 0:02:29]} 16. Bf5 {[%clk 0:02:26.8]} 16... g5 {[%clk 0:02:16.7]}
17. Bg3 {[%clk 0:02:23.5]} 17... Bxg3 {[%clk 0:02:16.7]} 18. hxg3 {[%clk
0:02:24.1]} 18... c4 {[%clk 0:02:16.8]} 19. Ne5 {[%clk 0:02:15.3]} 19... Rc7
{[%clk 0:02:16.2]} 20. Nxd7 {[%clk 0:01:50.3]} 20... Nxd7 {[%clk 0:02:17.1]} 21.
e4 {[%clk 0:01:50.9]} 21... dxe4 {[%clk 0:02:14.9]} 22. Bxe4 {[%clk 0:01:51.3]}
22... Nf6 {[%clk 0:02:10.8]} 23. Bxb7 {[%clk 0:01:49.1]} 23... Rxb7 {[%clk
0:02:11.7]} 24. Qf5 {[%clk 0:01:46.2]} 24... Rbe7 {[%clk 0:02:05.2]} 25. Kh2
{[%clk 0:01:09.1]} 25... Qd6 {[%clk 0:01:58.8]} 26. f3 {[%clk 0:01:04.6]} 26...
b5 {[%clk 0:01:53.7]} 27. Rd2 {[%clk 0:00:58]} 27... Kg7 {[%clk 0:01:49]} 28.
Rcd1 {[%clk 0:00:55]} 28... Re3 {[%clk 0:01:45.3]} 29. Qc5 {[%clk 0:00:50.5]}
29... Ng4+ {[%clk 0:00:50.8]} 30. Kh3 {[%clk 0:00:46.1]} 30... Qxc5 {[%clk
0:00:48.3]} 31. dxc5 {[%clk 0:00:45.7]} 31... Ne5 {[%clk 0:00:49.1]} 32. Nd5
{[%clk 0:00:38.2]} 32... Rd3 {[%clk 0:00:49.2]} 33. Nc7 {[%clk 0:00:35]} 33...
Red8 {[%clk 0:00:43.3]} 34. Rxd3 {[%clk 0:00:35]} 34... Nxd3 {[%clk 0:00:32.2]}
35. Kh2 {[%clk 0:00:34.6]} 35... a5 {[%clk 0:00:18.1]} 36. Nxb5 {[%clk
0:00:32.2]} 36... Rd5 {[%clk 0:00:18.3]} 37. Rd2 {[%clk 0:00:13]} 37... Rxc5
{[%clk 0:00:18.5]} 38. Nc3 {[%clk 0:00:13.1]} 38... Rc7 {[%clk 0:00:15.1]} 39.
Rc2 {[%clk 0:00:12.8]} 39... Rb7 {[%clk 0:00:15.2]} 40. Nd1 {[%clk 0:00:13]}
40... Ne5 {[%clk 0:00:12.3]} 41. Ne3 {[%clk 0:00:12.7]} 41... Rc7 {[%clk
0:00:12.5]} 42. f4 {[%clk 0:00:10.8]} 42... gxf4 {[%clk 0:00:12.2]} 43. gxf4
{[%clk 0:00:11.7]} 43... Nd3 {[%clk 0:00:12.7]} 44. g3 {[%clk 0:00:10.9]} 44...
a4 {[%clk 0:00:10.7]} 45. Rxc4 {[%clk 0:00:09.5]} 45... Rb7 {[%clk 0:00:10.4]}
46. Rxa4 {[%clk 0:00:04.8]} 46... Rxb2+ {[%clk 0:00:10.6]} 47. Kg1 {[%clk
0:00:04.7]} 47... Rb3 {[%clk 0:00:10.3]} 48. Ra6 {[%clk 0:00:03.8]} 48... h5
{[%clk 0:00:09.5]} 49. Nf5+ {[%clk 0:00:04.1]} 49... Kh7 {[%clk 0:00:09.9]} 50.
Kg2 {[%clk 0:00:04.6]} 50... Nc5 {[%clk 0:00:09.7]} 51. Rh6+ {[%clk 0:00:03.7]}
51... Kg8 {[%clk 0:00:10.3]} 52. Rxh5 {[%clk 0:00:04.3]} 52... Ne4 {[%clk
0:00:10]} 53. Ne7+ {[%clk 0:00:02.8]} 53... Kf8 {[%clk 0:00:09.6]} 54. Nf5
{[%clk 0:00:03.1]} 54... Kg8 {[%clk 0:00:10.1]} 55. Rh3 {[%clk 0:00:03.1]} 55...
Rxa3 {[%clk 0:00:10.2]} 56. Rh4 {[%clk 0:00:03.2]} 56... f6 {[%clk 0:00:09.5]}
57. Rg4+ {[%clk 0:00:02.6]} 57... Kf7 {[%clk 0:00:10]} 58. Nh6+ {[%clk
0:00:02.3]} 58... Ke6 {[%clk 0:00:10.4]} 59. Rg8 {[%clk 0:00:03.2]} 59... Ra2+
{[%clk 0:00:07.9]} 60. Kh3 {[%clk 0:00:02.1]} 60... Nd6 {[%clk 0:00:08.1]} 61.
Ng4 {[%clk 0:00:02]} 61... Ra3 {[%clk 0:00:07.9]} 62. Rg6 {[%clk 0:00:02.1]}
62... Ne4 {[%clk 0:00:07.8]} 63. Nf2 {[%clk 0:00:02.6]} 63... Nxf2+ {[%clk
0:00:07.8]} 64. Kg2 {[%clk 0:00:03.3]} 64... Ne4 {[%clk 0:00:08.5]} 65. g4
{[%clk 0:00:04]} 65... Kf7 {[%clk 0:00:08]} 66. Rh6 {[%clk 0:00:04]} 66... Kg7
{[%clk 0:00:08.3]} 67. Rh4 {[%clk 0:00:03.9]} 67... Kg6 {[%clk 0:00:08.3]} 68.
Kh2 {[%clk 0:00:03]} 68... Rf3 {[%clk 0:00:08.1]} 0-1

[Event "Early-Titled-Tuesday-Blitz-April-16-2024"]
[Site "Chess.com"]
[Date "2024.04.16"]
[Round "2"]
[White "JG-17"]
[Black "Makswolf200817"]
[Result "0-1"]
[WhiteElo "2544"]
[BlackElo "2774"]
[TimeControl "180+1"]
[EndTime "8:18:33 PDT"]
[Termination "Makswolf200817 won on time"]

1. e4 {[%clk 0:03:00.9]} 1... c5 {[%clk 0:02:57.6]} 2. Nf3 {[%clk 0:03:01.3]}
2... d6 {[%clk 0:02:57.8]} 3. d4 {[%clk 0:03:01.7]} 3... cxd4 {[%clk 0:02:58.6]}
4. Nxd4 {[%clk 0:03:02.3]} 4... Nf6 {[%clk 0:02:59.3]} 5. Nc3 {[%clk 0:03:02.9]}
5... a6 {[%clk 0:03:00.1]} 6. g3 {[%clk 0:03:02.5]} 6... e5 {[%clk 0:02:57.8]}
7. Nde2 {[%clk 0:03:01.9]} 7... b5 {[%clk 0:02:52.7]} 8. Bg2 {[%clk 0:03:02]}
8... Bb7 {[%clk 0:02:49.1]} 9. Bg5 {[%clk 0:03:01.6]} 9... Nbd7 {[%clk
0:02:47.8]} 10. O-O {[%clk 0:02:59.4]} 10... Be7 {[%clk 0:02:47.2]} 11. Qd2
{[%clk 0:02:34.6]} 11... O-O {[%clk 0:02:45.2]} 12. Rad1 {[%clk 0:02:27.9]}
12... b4 {[%clk 0:02:37.8]} 13. Bxf6 {[%clk 0:02:26.1]} 13... Nxf6 {[%clk
0:02:33.9]} 14. Nd5 {[%clk 0:02:25]} 14... Nxd5 {[%clk 0:02:32.7]} 15. exd5
{[%clk 0:02:25.2]} 15... a5 {[%clk 0:02:33.4]} 16. c3 {[%clk 0:02:23]} 16... Ba6
{[%clk 0:02:30.9]} 17. Rfe1 {[%clk 0:02:21.4]} 17... Bg5 {[%clk 0:02:30.2]} 18.
f4 {[%clk 0:02:17]} 18... Bf6 {[%clk 0:02:23.4]} 19. cxb4 {[%clk 0:02:12.6]}
19... Qb6+ {[%clk 0:02:21.2]} 20. Kh1 {[%clk 0:02:11.2]} 20... axb4 {[%clk
0:02:21.9]} 21. fxe5 {[%clk 0:02:05.5]} 21... Bxe5 {[%clk 0:02:21.9]} 22. Nd4
{[%clk 0:02:05.6]} 22... Bb7 {[%clk 0:01:58.6]} 23. Nc6 {[%clk 0:02:02.8]} 23...
Bxc6 {[%clk 0:01:55.9]} 24. dxc6 {[%clk 0:02:03.4]} 24... Rxa2 {[%clk
0:01:56.5]} 25. Rb1 {[%clk 0:01:30.2]} 25... Bc3 {[%clk 0:01:42.6]} 26. Qd5
{[%clk 0:01:25.9]} 26... Rxb2 {[%clk 0:01:31.8]} 27. Rxb2 {[%clk 0:01:19.9]}
27... Bxb2 {[%clk 0:01:29.3]} 28. Qxd6 {[%clk 0:01:19.1]} 28... Bc3 {[%clk
0:01:24.9]} 29. Rd1 {[%clk 0:00:55.5]} 29... Bf6 {[%clk 0:00:58]} 30. Qd7 {[%clk
0:00:28.8]} 30... Rd8 {[%clk 0:00:42]} 31. c7 {[%clk 0:00:28.7]} 31... Qxc7
{[%clk 0:00:31.1]} 32. Qxc7 {[%clk 0:00:27.3]} 32... Rxd1+ {[%clk 0:00:31.8]}
33. Bf1 {[%clk 0:00:28]} 33... Rxf1+ {[%clk 0:00:32.1]} 34. Kg2 {[%clk
0:00:28.6]} 34... Rd1 {[%clk 0:00:32.5]} 35. Qb8+ {[%clk 0:00:27]} 35... Rd8
{[%clk 0:00:33.1]} 36. Qxb4 {[%clk 0:00:27.5]} 36... g6 {[%clk 0:00:33.3]} 37.
h4 {[%clk 0:00:24.6]} 37... Kg7 {[%clk 0:00:33.8]} 38. Qb6 {[%clk 0:00:23.7]}
38... h5 {[%clk 0:00:30.1]} 39. Qa5 {[%clk 0:00:19.7]} 39... Rd3 {[%clk
0:00:29.2]} 40. Qb5 {[%clk 0:00:19.8]} 40... Rc3 {[%clk 0:00:28.8]} 41. Qd5
{[%clk 0:00:18.6]} 41... Re3 {[%clk 0:00:28.4]} 42. Qc5 {[%clk 0:00:17.2]} 42...
Rb3 {[%clk 0:00:26.7]} 43. Qd5 {[%clk 0:00:17.3]} 43... Rb2+ {[%clk 0:00:27.1]}
44. Kf3 {[%clk 0:00:17.6]} 44... Rc2 {[%clk 0:00:26.1]} 45. Qe4 {[%clk
0:00:16.9]} 45... Rc5 {[%clk 0:00:25]} 46. Qb4 {[%clk 0:00:16.4]} 46... Rd5
{[%clk 0:00:22.5]} 47. Kg2 {[%clk 0:00:16.2]} 47... Be5 {[%clk 0:00:21.8]} 48.
Qe4 {[%clk 0:00:16.8]} 48... Rd2+ {[%clk 0:00:21.8]} 49. Kf3 {[%clk 0:00:16.1]}
49... Kf6 {[%clk 0:00:19.1]} 50. Qc6+ {[%clk 0:00:15.7]} 50... Rd6 {[%clk
0:00:19.8]} 51. Qe4 {[%clk 0:00:15.5]} 51... Rb6 {[%clk 0:00:20.4]} 52. Kg2
{[%clk 0:00:14.9]} 52... Rb3 {[%clk 0:00:19.7]} 53. Qc6+ {[%clk 0:00:14.9]}
53... Kg7 {[%clk 0:00:20.2]} 54. Qe4 {[%clk 0:00:09.5]} 54... Rxg3+ {[%clk
0:00:14.3]} 55. Kf2 {[%clk 0:00:09.4]} 55... f6 {[%clk 0:00:12.6]} 56. Qb7+
{[%clk 0:00:07.6]} 56... Kh6 {[%clk 0:00:13.1]} 57. Qf7 {[%clk 0:00:05.4]} 57...
f5 {[%clk 0:00:09.4]} 58. Qf8+ {[%clk 0:00:03.2]} 58... Bg7 {[%clk 0:00:09.1]}
59. Qf7 {[%clk 0:00:02.1]} 59... Rg4 {[%clk 0:00:09.4]} 60. Qe7 {[%clk
0:00:01.9]} 60... Kh7 {[%clk 0:00:08.9]} 61. Qd8 {[%clk 0:00:02.5]} 61... Bd4+
{[%clk 0:00:07.5]} 62. Ke2 {[%clk 0:00:02]} 62... Bg7 {[%clk 0:00:07.6]} 63. Qe7
{[%clk 0:00:02.5]} 63... Rf4 {[%clk 0:00:07.8]} 64. Kd3 {[%clk 0:00:02.1]} 64...
Re4 {[%clk 0:00:07.8]} 65. Qf7 {[%clk 0:00:01.2]} 65... Rxh4 {[%clk 0:00:07.5]}
0-1

[Event "Early-Titled-Tuesday-Blitz-April-16-2024"]
[Site "Chess.com"]
[Date "2024.04.16"]
[Round "2"]
[White "sathvikadiga"]
[Black "TenisMaster"]
[Result "0-1"]
[WhiteElo "2599"]
[BlackElo "2920"]
[TimeControl "180+1"]
[EndTime "8:18:35 PDT"]
[Termination "TenisMaster won by checkmate"]

1. e4 {[%clk 0:03:00.9]} 1... e5 {[%clk 0:02:59.7]} 2. Nf3 {[%clk 0:03:00.3]}
2... Nc6 {[%clk 0:03:00.2]} 3. Bc4 {[%clk 0:02:58.7]} 3... Bc5 {[%clk
0:02:59.9]} 4. O-O {[%clk 0:02:58.5]} 4... Nf6 {[%clk 0:02:59.7]} 5. d3 {[%clk
0:02:58.8]} 5... d6 {[%clk 0:02:59.2]} 6. c3 {[%clk 0:02:59.2]} 6... a6 {[%clk
0:02:53.4]} 7. Bb3 {[%clk 0:02:57.7]} 7... O-O {[%clk 0:02:49.8]} 8. Nbd2 {[%clk
0:02:55.9]} 8... Re8 {[%clk 0:02:48.8]} 9. h3 {[%clk 0:02:55.2]} 9... h6 {[%clk
0:02:48.2]} 10. Re1 {[%clk 0:02:54.4]} 10... Be6 {[%clk 0:02:48.3]} 11. Nf1
{[%clk 0:02:54.1]} 11... d5 {[%clk 0:02:48.4]} 12. exd5 {[%clk 0:02:47.8]} 12...
Bxd5 {[%clk 0:02:48.3]} 13. Bc2 {[%clk 0:02:47.4]} 13... Qd7 {[%clk 0:02:38.3]}
14. Ng3 {[%clk 0:02:44.5]} 14... Rad8 {[%clk 0:02:37.4]} 15. Be3 {[%clk
0:02:45]} 15... Bf8 {[%clk 0:02:35.2]} 16. Qe2 {[%clk 0:02:36.6]} 16... g6
{[%clk 0:02:28.3]} 17. Rad1 {[%clk 0:02:34.4]} 17... Qc8 {[%clk 0:02:26.5]} 18.
a3 {[%clk 0:02:33]} 18... Bg7 {[%clk 0:02:25.5]} 19. Ne4 {[%clk 0:02:27.4]}
19... Nxe4 {[%clk 0:02:14.8]} 20. dxe4 {[%clk 0:02:28.3]} 20... Be6 {[%clk
0:02:14.9]} 21. Rxd8 {[%clk 0:02:28.2]} 21... Rxd8 {[%clk 0:02:15]} 22. Rd1
{[%clk 0:02:29.1]} 22... Na5 {[%clk 0:02:09.3]} 23. Rxd8+ {[%clk 0:02:20.8]}
23... Qxd8 {[%clk 0:02:10.2]} 24. Bc1 {[%clk 0:02:18.2]} 24... Qd7 {[%clk
0:02:05.9]} 25. Qd2 {[%clk 0:02:15.4]} 25... Qe8 {[%clk 0:01:59.4]} 26. Qe2
{[%clk 0:02:03.4]} 26... Nb3 {[%clk 0:01:54.7]} 27. Be3 {[%clk 0:02:01.7]} 27...
Qc6 {[%clk 0:01:52]} 28. Qd3 {[%clk 0:01:55.9]} 28... Kh7 {[%clk 0:01:44.9]} 29.
Qd8 {[%clk 0:01:50.7]} 29... Nc5 {[%clk 0:01:43.7]} 30. Nd2 {[%clk 0:00:31.6]}
30... b6 {[%clk 0:01:31]} 31. Qe7 {[%clk 0:00:31.4]} 31... Nb7 {[%clk
0:01:25.3]} 32. Bb3 {[%clk 0:00:26.8]} 32... Bxb3 {[%clk 0:01:02.5]} 33. Nxb3
{[%clk 0:00:27.7]} 33... Kg8 {[%clk 0:01:00.9]} 34. Nd2 {[%clk 0:00:24.9]} 34...
Nd6 {[%clk 0:01:00]} 35. Qd8+ {[%clk 0:00:24.4]} 35... Kh7 {[%clk 0:00:59.8]}
36. Qe7 {[%clk 0:00:24.8]} 36... a5 {[%clk 0:00:55.3]} 37. f3 {[%clk 0:00:24.1]}
37... a4 {[%clk 0:00:54.6]} 38. h4 {[%clk 0:00:22.4]} 38... h5 {[%clk
0:00:53.5]} 39. Kh2 {[%clk 0:00:20.6]} 39... f6 {[%clk 0:00:42.2]} 40. Nf1
{[%clk 0:00:16.5]} 40... Kg8 {[%clk 0:00:42.2]} 41. Qd8+ {[%clk 0:00:16.6]}
41... Kf7 {[%clk 0:00:42.3]} 42. Ng3 {[%clk 0:00:17]} 42... Bf8 {[%clk
0:00:40.1]} 43. f4 {[%clk 0:00:14.4]} 43... Nc4 {[%clk 0:00:39.6]} 44. Bc1
{[%clk 0:00:12.9]} 44... exf4 {[%clk 0:00:35.5]} 45. Bxf4 {[%clk 0:00:13.8]}
45... Nxb2 {[%clk 0:00:35.4]} 46. e5 {[%clk 0:00:12.8]} 46... fxe5 {[%clk
0:00:29.8]} 47. Bxe5 {[%clk 0:00:13.7]} 47... Nc4 {[%clk 0:00:29.9]} 48. Bd4
{[%clk 0:00:13.6]} 48... Qd6 {[%clk 0:00:26.9]} 49. Qa8 {[%clk 0:00:08.6]} 49...
b5 {[%clk 0:00:26.2]} 50. Qf3+ {[%clk 0:00:08.4]} 50... Ke8 {[%clk 0:00:22.8]}
51. Qa8+ {[%clk 0:00:07.6]} 51... Kd7 {[%clk 0:00:22.7]} 52. Qf3 {[%clk
0:00:08.2]} 52... Be7 {[%clk 0:00:22.8]} 53. Kh3 {[%clk 0:00:06.7]} 53... Nxa3
{[%clk 0:00:20]} 54. Ne4 {[%clk 0:00:06.3]} 54... Qe6+ {[%clk 0:00:20]} 55. Kh2
{[%clk 0:00:06.7]} 55... Nc4 {[%clk 0:00:19.5]} 56. Bc5 {[%clk 0:00:05.5]} 56...
Qe5+ {[%clk 0:00:18.9]} 57. Kh1 {[%clk 0:00:03.9]} 57... Bxc5 {[%clk 0:00:18.8]}
58. Qf7+ {[%clk 0:00:04.1]} 58... Be7 {[%clk 0:00:18.6]} 59. Qxg6 {[%clk
0:00:04.1]} 59... a3 {[%clk 0:00:18.1]} 60. Qg3 {[%clk 0:00:01.9]} 60... Qxg3
{[%clk 0:00:17.7]} 61. Nxg3 {[%clk 0:00:02.8]} 61... a2 {[%clk 0:00:18.2]} 62.
Kh2 {[%clk 0:00:03.7]} 62... a1=Q {[%clk 0:00:18.5]} 63. Nf5 {[%clk 0:00:04.6]}
63... Qxc3 {[%clk 0:00:18.5]} 64. Nxe7 {[%clk 0:00:05]} 64... Qe5+ {[%clk
0:00:18.8]} 65. Kh3 {[%clk 0:00:05.1]} 65... Kxe7 {[%clk 0:00:19.7]} 66. g3
{[%clk 0:00:05.6]} 66... Ne3 {[%clk 0:00:19.7]} 67. Kh2 {[%clk 0:00:05.8]} 67...
Qb2+ {[%clk 0:00:19.6]} 68. Kh3 {[%clk 0:00:04.8]} 68... Qg2# {[%clk 0:00:20.5]}
0-1

[Event "Early-Titled-Tuesday-Blitz-April-16-2024"]
[Site "Chess.com"]
[Date "2024.04.16"]
[Round "2"]
[White "Djager97"]
[Black "LeninGuerra"]
[Result "1/2-1/2"]
[WhiteElo "2565"]
[BlackElo "2796"]
[TimeControl "180+1"]
[EndTime "8:18:36 PDT"]
[Termination "Game drawn by repetition"]

1. e4 {[%clk 0:02:55.1]} 1... c5 {[%clk 0:02:59.9]} 2. Nc3 {[%clk 0:02:52.2]}
2... e6 {[%clk 0:02:59.8]} 3. f4 {[%clk 0:02:51.7]} 3... b6 {[%clk 0:02:58.5]}
4. Nf3 {[%clk 0:02:51.9]} 4... Bb7 {[%clk 0:02:58.8]} 5. d4 {[%clk 0:02:49.1]}
5... cxd4 {[%clk 0:02:58.1]} 6. Nxd4 {[%clk 0:02:49.4]} 6... Nf6 {[%clk
0:02:57.4]} 7. Bd3 {[%clk 0:02:48.8]} 7... a6 {[%clk 0:02:57.7]} 8. Be3 {[%clk
0:02:46]} 8... d6 {[%clk 0:02:57.6]} 9. O-O {[%clk 0:02:45.3]} 9... Nbd7 {[%clk
0:02:57.6]} 10. Qf3 {[%clk 0:02:44.7]} 10... Be7 {[%clk 0:02:56.8]} 11. Kh1
{[%clk 0:02:44]} 11... Nc5 {[%clk 0:02:37.8]} 12. g4 {[%clk 0:02:32.3]} 12... d5
{[%clk 0:02:37.9]} 13. e5 {[%clk 0:02:29.8]} 13... Nfe4 {[%clk 0:02:38.1]} 14.
f5 {[%clk 0:02:20.1]} 14... O-O {[%clk 0:01:33.7]} 15. Rad1 {[%clk 0:02:16.9]}
15... Qc7 {[%clk 0:01:21.5]} 16. Bf4 {[%clk 0:02:16.3]} 16... f6 {[%clk
0:01:14.6]} 17. exf6 {[%clk 0:02:12.9]} 17... e5 {[%clk 0:01:14.9]} 18. fxe7
{[%clk 0:02:12.3]} 18... Qxe7 {[%clk 0:01:15.8]} 19. Nde2 {[%clk 0:01:56.5]}
19... Nxc3 {[%clk 0:01:01.3]} 20. bxc3 {[%clk 0:01:42.7]} 20... d4 {[%clk
0:00:52.2]} 21. Bc4+ {[%clk 0:01:41.3]} 21... Kh8 {[%clk 0:00:51.4]} 22. Bd5
{[%clk 0:01:40.4]} 22... Bxd5 {[%clk 0:00:35.8]} 23. Qxd5 {[%clk 0:01:41.3]}
23... exf4 {[%clk 0:00:36]} 24. Nxf4 {[%clk 0:01:37.6]} 24... Rad8 {[%clk
0:00:35.7]} 25. Qf3 {[%clk 0:01:26.7]} 25... dxc3 {[%clk 0:00:35.9]} 26. Rde1
{[%clk 0:01:12.2]} 26... Qg5 {[%clk 0:00:35.7]} 27. h3 {[%clk 0:00:35.2]} 27...
Rd4 {[%clk 0:00:27.3]} 28. Ne6 {[%clk 0:00:25]} 28... Nxe6 {[%clk 0:00:24]} 29.
Rxe6 {[%clk 0:00:24.8]} 29... h5 {[%clk 0:00:20.5]} 30. Rg6 {[%clk 0:00:19.7]}
30... Qh4 {[%clk 0:00:19]} 31. Qxc3 {[%clk 0:00:15.8]} 31... Rd7 {[%clk
0:00:12.5]} 32. f6 {[%clk 0:00:15.1]} 32... Kg8 {[%clk 0:00:10.9]} 33. Qc4+
{[%clk 0:00:05.8]} 33... Kh7 {[%clk 0:00:11.1]} 34. Rxg7+ {[%clk 0:00:03.1]}
34... Rxg7 {[%clk 0:00:11.1]} 35. fxg7 {[%clk 0:00:03.6]} 35... Qxh3+ {[%clk
0:00:11.6]} 36. Kg1 {[%clk 0:00:04.3]} 36... Rxf1+ {[%clk 0:00:11.9]} 37. Qxf1
{[%clk 0:00:05]} 37... Qxg4+ {[%clk 0:00:12.2]} 38. Kh2 {[%clk 0:00:05.7]} 38...
Kxg7 {[%clk 0:00:12.4]} 39. Qxa6 {[%clk 0:00:05]} 39... Qf4+ {[%clk 0:00:12.7]}
40. Kg2 {[%clk 0:00:04.3]} 40... Qg4+ {[%clk 0:00:13.1]} 41. Kh2 {[%clk
0:00:04.6]} 41... Qe6 {[%clk 0:00:13.5]} 42. Qb7+ {[%clk 0:00:04.5]} 42... Kg6
{[%clk 0:00:13.7]} 43. Qg2+ {[%clk 0:00:04.6]} 43... Kh6 {[%clk 0:00:13.4]} 44.
Qd2+ {[%clk 0:00:04.5]} 44... Kg6 {[%clk 0:00:13.9]} 45. Qd3+ {[%clk 0:00:04.9]}
45... Kg5 {[%clk 0:00:14.2]} 46. Qd2+ {[%clk 0:00:05]} 46... Kf6 {[%clk
0:00:14]} 47. Qf4+ {[%clk 0:00:04.1]} 47... Ke7 {[%clk 0:00:14.2]} 48. Qg5+
{[%clk 0:00:03.1]} 48... Kd6 {[%clk 0:00:14.5]} 49. Qxh5 {[%clk 0:00:03.4]}
49... Qf6 {[%clk 0:00:13]} 50. Qd1+ {[%clk 0:00:03.1]} 50... Kc5 {[%clk
0:00:12.8]} 51. Qd3 {[%clk 0:00:02.7]} 51... Qe5+ {[%clk 0:00:12.1]} 52. Kg2
{[%clk 0:00:02.7]} 52... Qa1 {[%clk 0:00:12.1]} 53. a3 {[%clk 0:00:02.5]} 53...
Qe1 {[%clk 0:00:11.7]} 54. Kf3 {[%clk 0:00:02.9]} 54... b5 {[%clk 0:00:11.9]}
55. Qe3+ {[%clk 0:00:03.2]} 55... Qxe3+ {[%clk 0:00:12.1]} 56. Kxe3 {[%clk
0:00:04.1]} 56... Kc4 {[%clk 0:00:12.7]} 57. Kd2 {[%clk 0:00:04.6]} 57... Kd4
{[%clk 0:00:13.3]} 58. c3+ {[%clk 0:00:05.1]} 58... Kc4 {[%clk 0:00:13.7]} 59.
Kc2 {[%clk 0:00:05.7]} 59... Kc5 {[%clk 0:00:12.8]} 60. Kb3 {[%clk 0:00:06]}
60... Kc6 {[%clk 0:00:12.9]} 61. Kb4 {[%clk 0:00:04.4]} 61... Kb6 {[%clk
0:00:13.4]} 62. Kb3 {[%clk 0:00:03.6]} 62... Kc5 {[%clk 0:00:13.6]} 63. Kb2
{[%clk 0:00:04]} 63... Kc6 {[%clk 0:00:13.9]} 64. Kc1 {[%clk 0:00:04]} 64... Kc5
{[%clk 0:00:13.6]} 65. Kd2 {[%clk 0:00:04.3]} 65... Kc4 {[%clk 0:00:13.6]} 66.
Kc2 {[%clk 0:00:04.6]} 66... Kc5 {[%clk 0:00:14.1]} 67. Kd3 {[%clk 0:00:04.9]}
67... Kd5 {[%clk 0:00:14]} 68. Kd2 {[%clk 0:00:04]} 68... Kc4 {[%clk 0:00:14.4]}
1/2-1/2